bitfinex/quotes_SOLUSD_20250922
["timestamp","ask_amount","ask_price","bid_price","bid_amount"]
[1758578640905,26.0,220.98,220.9,0.71]
[1758578641935,30.52540073,220.98,220.91,4.52673034]
[1758578643229,1.54591909,220.93,220.84,13.59559401]
[1758578643415,36.82591909,220.93,220.84,13.59559401]
[1758578644135,1.54591909,220.9,220.81,4.52878039]
[1758578644317,1.54591909,220.9,220.82,14.30559401]
[1758578645553,4.5271402,220.89,220.82,18.83412309]
[1758578645940,4.5271402,220.89,220.82,14.30559401]
[1758578646129,4.5271402,220.89,220.82,0.71]
[1758578646937,1.54591909,220.87,220.8,58.70643629]
[1758578647642,4.52837023,220.83,220.78,0.2]
[1758578648931,39.86837023,220.83,220.78,0.2]
[1758578650344,35.32,220.83,220.79,0.71]
[1758578650544,35.32,220.83,220.78,0.2]
[1758578650849,1.54591909,220.81,220.78,0.2]
[1758578651640,4.5289855,220.8,220.78,0.2]
[1758578652034,26.0,220.79,220.78,0.2]
[1758578652436,27.54591909,220.79,220.78,0.2]
[1758578654327,6.07452872,220.82,220.78,0.2]
[1758578654536,35.34,220.81,220.78,0.2]
[1758578654753,4.52862733,220.82,220.78,0.2]
[1758578655050,6.07454642,220.82,220.78,0.2]
[1758578657938,1.54591909,220.79,220.78,0.2]
[1758578659544,27.54591909,220.79,220.78,0.2]
[1758578660056,67.37510972,220.79,220.78,0.2]
[1758578663035,65.82919063,220.79,220.78,0.2]
[1758578663232,61.3,220.79,220.78,0.92]
[1758578663437,61.3,220.79,220.78,0.2]
[1758578664055,134.2,220.81,220.78,0.92]
[1758578664233,169.48,220.81,220.78,0.92]
[1758578664433,169.48,220.81,220.79,0.72]
[1758578664633,134.2,220.81,220.8,0.72]
[1758578665130,134.2,220.81,220.78,0.92]
[1758578665337,134.2,220.81,220.79,0.72]
[1758578665538,134.2,220.81,220.78,0.2]
[1758578665741,39.82828742,220.84,220.8,0.72]
[1758578665742,35.3,220.84,220.8,0.72]
[1758578665959,35.3,220.84,220.81,0.72]
[1758578666557,39.82819405,220.84,220.81,0.72]
[1758578667262,39.82819405,220.84,220.79,0.72]
[1758578667448,39.82819405,220.84,220.8,0.72]
[1758578669753,35.3,220.84,220.81,0.72]
[1758578670670,35.3,220.84,220.79,4.529132]
[1758578670969,1.54591909,220.91,220.82,0.72]
[1758578671135,26.0,220.89,220.82,0.72]
[1758578671651,26.0,220.87,220.82,0.72]
[1758578671859,26.0,220.87,220.83,0.72]
[1758578672163,26.0,220.87,220.79,4.529132]
[1758578672343,36.80591909,220.88,220.84,0.72]
[1758578672542,35.26,220.88,220.84,0.72]
[1758578672761,4.52755014,220.87,220.84,0.72]
[1758578673266,4.52755014,220.87,220.81,0.72]
[1758578680869,4.52755014,220.87,220.81,5.2487206]
[1758578681373,4.52755014,220.87,220.81,0.72]
[1758578681760,138.72755014,220.87,220.81,0.72]
[1758578687775,134.2,220.87,220.81,5.24863702]
[1758578689182,138.72763509,220.87,220.81,5.24863702]
[1758578690451,187.62485944,220.87,220.81,0.72]
[1758578690655,187.62485944,220.87,220.78,0.2]
[1758578690656,187.62485944,220.87,220.78,0.92]
[1758578690869,28.418349,220.84,220.78,0.2]
[1758578691076,63.578349,220.84,220.78,0.2]
[1758578692979,63.578349,220.84,220.78,0.92]
[1758578692980,4.52837023,220.83,220.78,0.92]
[1758578693283,4.52837023,220.83,220.78,0.2]
[1758578693482,4.52837023,220.83,220.79,0.72]
[1758578696482,26.0,220.84,220.79,0.72]
[1758578696670,35.14,220.84,220.78,5.44935418]
[1758578696871,39.66817595,220.84,220.78,5.44935418]
[1758578697666,35.14,220.84,220.79,0.67]
[1758578698472,35.14,220.84,220.78,4.72935418]
[1758578698669,35.14,220.84,220.79,0.67]
[1758578698870,35.14,220.84,220.8,0.67]
[1758578699070,61.12,220.85,220.8,0.67]
[1758578699263,61.12,220.85,220.81,0.67]
[1758578699463,35.12,220.85,220.81,0.67]
[1758578699664,39.64796128,220.85,220.81,0.67]
[1758578700378,39.64796128,220.85,220.79,0.67]
[1758578700886,39.64796128,220.85,220.79,5.19909103]
[1758578701492,138.72771217,220.87,220.8,0.67]
[1758578701785,35.1,220.86,220.8,0.67]
[1758578703192,39.62784522,220.86,220.8,5.19896811]
[1758578703575,39.62784522,220.86,220.81,0.67]
[1758578705561,39.62784522,220.86,220.8,0.67]
[1758578708268,39.62784522,220.86,220.8,5.1989242]
[1758578709188,35.1,220.86,220.8,4.5289242]
[1758578709488,35.1,220.86,220.81,0.67]
[1758578710077,35.1,220.86,220.82,0.67]
[1758578710392,138.7275519,220.87,220.82,0.67]
[1758578710587,3.0536044,220.86,220.81,4.52859348]
[1758578710793,4.52645232,220.93,220.84,13.59559401]
[1758578710990,3.05305017,220.92,220.83,0.67]
[1758578711168,40.55139917,220.91,220.83,0.67]
[1758578711374,3.05305017,220.9,220.83,0.67]
[1758578711696,3.05305017,220.89,220.83,0.67]
[1758578711869,3.05305017,220.9,220.83,0.67]
[1758578712067,7.58030347,220.89,220.83,5.19835895]
[1758578712273,4.5272533,220.89,220.83,5.19835895]
[1758578712568,7.58030347,220.89,220.84,0.67]
[1758578712772,4.5272533,220.89,220.85,0.67]
[1758578713094,7.58030347,220.89,220.85,0.67]
[1758578713272,4.5272533,220.89,220.85,0.67]
[1758578713472,7.58030347,220.89,220.85,0.67]
[1758578713673,4.5272533,220.89,220.85,0.67]
[1758578713874,3.05305017,220.89,220.85,5.19794304]
[1758578714075,3.05305017,220.9,220.86,0.67]
[1758578714282,39.60652379,220.93,220.86,0.67]
[1758578714477,3.05175699,220.92,220.85,4.52794304]
[1758578714694,3.05175699,220.91,220.86,0.67]
[1758578714874,3.05175699,220.92,220.87,0.67]
[1758578715069,3.05175699,220.91,220.87,0.67]
[1758578715285,7.57835177,220.92,220.87,0.67]
[1758578715483,3.05175699,220.91,220.87,0.67]
[1758578715690,3.05175699,220.91,220.84,13.60821937]
[1758578715892,3.05175699,220.91,220.85,0.67]
[1758578716087,3.05175699,220.92,220.85,0.67]
[1758578716289,3.05175699,220.91,220.85,0.67]
[1758578716483,3.05175699,220.92,220.85,0.67]
[1758578716688,3.05175699,220.91,220.85,0.67]
[1758578716890,3.05175699,220.92,220.85,0.67]
[1758578717094,3.05175699,220.91,220.85,0.67]
[1758578717291,7.57830221,220.92,220.85,5.19790858]
[1758578717497,7.57830221,220.92,220.86,0.67]
[1758578717880,2.418349,220.88,220.78,0.2]
[1758578718082,2.418349,220.88,220.8,13.59559401]
[1758578718403,2.418349,220.88,220.81,0.67]
[1758578718986,5.46920843,220.88,220.81,0.67]
[1758578719304,4.52755014,220.87,220.81,5.19869976]
[1758578721587,5.46920843,220.88,220.81,4.52869976]
[1758578721903,5.46920843,220.88,220.82,0.67]
[1758578722784,6.94575238,220.88,220.82,0.67]
[1758578723001,30.52709383,220.9,220.82,5.19840479]
[1758578723208,3.05060046,220.89,220.83,0.67]
[1758578723995,7.57791931,220.89,220.83,0.67]
[1758578724186,3.05060046,220.89,220.83,5.19834939]
[1758578724380,3.05060046,220.9,220.84,0.67]
[1758578726018,7.57755113,220.9,220.84,0.67]
[1758578727188,7.57755113,220.9,220.84,5.19815395]
[1758578727390,7.57704306,220.9,220.84,5.19815395]
[1758578728086,3.05009239,220.9,220.85,0.66]
[1758578728501,173.78673361,220.91,220.85,0.66]
[1758578729307,173.78673361,220.91,220.85,5.18782276]
[1758578729711,169.24,220.91,220.86,0.66]
[1758578729888,169.24,220.91,220.87,0.66]
[1758578731204,134.2,220.91,220.88,0.66]
[1758578731403,134.2,220.91,220.89,0.66]
[1758578731614,13.60945403,221.0,220.9,13.59559401]
[1758578731904,6.23096449,221.01,220.91,0.66]
[1758578731905,3.04835103,220.99,220.91,0.66]
[1758578732108,3.04835103,221.0,220.92,13.59559401]
[1758578732310,3.04835103,221.0,220.93,0.66]
[1758578732998,3.04835103,221.0,220.94,4.52611568]
[1758578733302,3.04835103,221.0,220.95,0.66]
[1758578733505,3.04373418,221.01,220.96,0.66]
[1758578733713,5.46208318,221.02,220.96,0.66]
[1758578733912,9.98656914,221.02,220.96,0.66]
[1758578734101,9.98656914,221.02,220.94,0.66]
[1758578734813,1.54606974,221.01,220.93,4.52629416]
[1758578735007,4.52488687,221.0,220.93,4.52629416]
[1758578735415,4.52488687,221.0,220.92,14.25559401]
[1758578735598,1.54606974,220.98,220.89,13.59559401]
[1758578735792,1.54606974,220.98,220.9,0.66]
[1758578736791,6.07156503,220.98,220.91,4.52673034]
[1758578737013,6.07156503,220.98,220.91,5.18673034]
[1758578738018,6.07156503,220.98,220.91,0.66]
[1758578739099,41.17156503,220.98,220.91,0.66]
[1758578740192,41.17156503,220.98,220.91,5.18671968]
[1758578740503,41.17156503,220.98,220.92,0.66]
[1758578741399,41.17156503,220.98,220.9,4.52693526]
[1758578741707,41.17156503,220.98,220.9,5.18693526]
[1758578742119,41.17156503,220.98,220.91,0.66]
[1758578743214,52.48480604,220.98,220.88,4.5272143]
[1758578743420,52.48480604,220.98,220.89,0.66]
[1758578745418,41.17156503,220.98,220.9,4.52693526]
[1758578745630,41.17156503,220.98,220.91,0.66]
[1758578746297,41.17156503,220.98,220.87,13.6057507]
[1758578746637,41.17156503,220.98,220.88,5.18716759]
[1758578746801,41.17156503,220.98,220.89,0.66]
[1758578747124,134.2,220.97,220.89,0.66]
[1758578747421,4.52570601,220.96,220.89,5.18709083]
[1758578748300,4.52570601,220.96,220.9,0.66]
[1758578750425,134.2,220.97,220.91,4.52673034]
[1758578750426,138.72550962,220.97,220.91,4.52673034]
[1758578752325,138.72550962,220.97,220.91,0.66]
[1758578753318,138.72550962,220.97,220.91,5.18656061]
[1758578753512,134.2,220.97,220.91,5.18656061]
[1758578753823,134.2,220.97,220.92,0.66]
[1758578754328,134.2,220.97,220.91,4.52656061]
[1758578754510,134.2,220.97,220.92,0.66]
[1758578754706,134.2,220.97,220.92,5.18644982]
[1758578755316,134.2,220.97,220.92,4.52644982]
[1758578755506,134.2,220.97,220.92,5.18644982]
[1758578755908,134.2,220.97,220.93,0.66]
[1758578756316,134.2,220.97,220.94,0.66]
[1758578758026,134.2,220.97,220.95,4.52591083]
[1758578758227,134.2,220.97,220.96,0.69]
[1758578759735,30.52460018,221.02,220.96,5.21570601]
[1758578759916,169.22,221.04,220.97,0.69]
[1758578760116,3.04227394,221.03,220.97,14.11295768]
[1758578760317,3.04227394,221.03,220.98,0.69]
[1758578760516,3.04227394,221.03,220.99,0.69]
[1758578760926,134.2,221.04,220.99,0.69]
[1758578761837,1.54606974,221.02,220.97,13.87269946]
[1758578762134,1.54606974,220.98,220.9,18.82127979]
[1758578762509,1.54606974,220.98,220.9,5.21676309]
[1758578762935,1.54606974,220.98,220.91,0.69]
[1758578763512,1.54606974,220.94,220.89,13.59559401]
[1758578763708,1.54606974,220.94,220.89,28.06953098]
[1758578763935,1.54606974,220.94,220.89,18.81267758]
[1758578764137,1.54606974,220.94,220.9,0.69]
[1758578764440,1.54606974,220.94,220.91,0.69]
[1758578764821,1.54606974,220.94,220.89,18.81267758]
[1758578765022,1.54606974,220.94,220.89,18.12267758]
[1758578765226,1.54606974,220.94,220.9,0.69]
[1758578765720,1.54606974,220.94,220.89,18.12267758]
[1758578765721,1.54606974,220.94,220.91,0.69]
[1758578766239,6.07157093,220.97,220.91,0.69]
[1758578766939,6.07157093,220.97,220.89,27.09830733]
[1758578767236,6.07157093,220.97,220.89,14.19271332]
[1758578767237,17.38532392,220.97,220.89,14.19271332]
[1758578769420,4.52591083,220.95,220.89,14.19271332]
[1758578770129,4.52591083,220.95,220.9,0.69]
[1758578770330,4.52591083,220.95,220.91,0.69]
[1758578774846,4.59329746,220.94,220.85,0.69]
[1758578775067,4.52652543,220.92,220.85,5.21789984]
[1758578775240,7.57375315,220.92,220.85,5.21789984]
[1758578775445,4.52652543,220.92,220.85,0.69]
[1758578775648,4.52652543,220.92,220.86,0.72]
[1758578775941,7.57375315,220.92,220.84,14.31559401]
[1758578776147,3.04722772,220.91,220.84,27.96533861]
[1758578776326,4.52652543,220.92,220.84,27.96533861]
[1758578776525,7.57375315,220.92,220.84,27.96533861]
[1758578776849,4.52693526,220.9,220.85,0.72]
[1758578778045,4.52693526,220.9,220.84,31.77349099]
[1758578778243,4.52693526,220.9,220.85,0.72]
[1758578779346,4.52693526,220.9,220.84,31.77349099]
[1758578779544,4.52693526,220.9,220.85,0.72]
[1758578781545,4.52693526,220.9,220.84,13.6497446]
[1758578781845,4.52693526,220.9,220.83,0.72]
[1758578782142,4.52693526,220.9,220.83,5.24824602]
[1758578782341,4.52693526,220.9,220.84,0.72]
[1758578783752,4.52693526,220.9,220.84,5.24815342]
[1758578784053,4.52693526,220.9,220.85,0.72]
[1758578784355,26.0,220.92,220.86,0.72]
[1758578784528,26.0,220.95,220.87,13.59559401]
[1758578784850,3.04751916,220.94,220.88,0.72]
[1758578785425,3.04751916,220.94,220.89,4.5271402]
[1758578785650,35.02,220.96,220.9,0.72]
[1758578785853,3.04746146,220.95,220.9,0.72]
[1758578786832,4.5257102,220.96,220.9,0.72]
[1758578787033,7.57317166,220.96,220.9,0.72]
[1758578787742,3.04746146,220.96,220.9,5.24686686]
[1758578787936,3.04746146,220.96,220.91,0.69]
[1758578788136,3.04746146,220.96,220.92,0.69]
[1758578789132,7.57316835,220.96,220.92,0.69]
[1758578789448,3.04746146,220.96,220.93,0.69]
[1758578789653,3.04746146,220.97,220.94,0.69]
[1758578790735,4.52447742,221.02,220.94,5.21599835]
[1758578790935,3.04688833,221.01,220.95,0.69]
[1758578791355,38.06688833,221.01,220.92,13.59559401]
[1758578791654,4.59295807,221.0,220.93,0.69]
[1758578791856,3.04688833,221.0,220.93,0.69]
[1758578792655,7.57195955,221.0,220.93,5.2163036]
[1758578792846,7.57195955,221.0,220.94,0.69]
[1758578793437,7.57195955,221.0,220.93,4.5263036]
[1758578793636,1.54606974,220.98,220.89,0.69]
[1758578793849,35.02,220.97,220.89,5.21709349]
[1758578794052,3.04688833,220.96,220.89,18.8126875]
[1758578794351,3.04688833,220.96,220.89,5.21709349]
[1758578794737,4.52591083,220.95,220.89,5.21709349]
[1758578795239,4.52591083,220.95,220.9,0.69]
[1758578795434,4.52591083,220.95,220.91,0.69]
[1758578801252,4.52591083,220.95,220.89,4.52709349]
[1758578801557,4.52591083,220.95,220.9,0.69]
[1758578801731,4.52591083,220.95,220.89,4.52709349]
[1758578801936,4.52591083,220.95,220.91,0.69]
[1758578803752,4.52591083,220.95,220.86,4.52757937]
[1758578804064,136.61654376,220.94,220.85,0.69]
[1758578804238,38.06688833,220.93,220.86,13.60636778]
[1758578804438,3.04688833,220.92,220.86,0.69]
[1758578805355,4.52673034,220.91,220.86,0.69]
[1758578805557,4.52673034,220.91,220.85,4.52795421]
[1758578805768,4.52673034,220.91,220.87,0.69]
[1758578806644,4.52673034,220.91,220.85,0.69]
[1758578809966,15.84355619,220.91,220.85,0.69]
[1758578810154,50.86355619,220.91,220.85,0.69]
[1758578811854,39.54673034,220.91,220.85,0.69]
[1758578813169,4.52673034,220.91,220.85,5.21788883]
[1758578813358,4.52673034,220.91,220.86,0.69]
[1758578813557,7.57578777,220.91,220.86,0.69]
[1758578815349,7.57578777,220.91,220.84,13.4047122]
[1758578815571,7.57578777,220.91,220.84,0.69]
[1758578817268,7.57578777,220.91,220.84,5.21809213]
[1758578817465,7.57578777,220.91,220.85,0.7]
[1758578817776,7.57578777,220.91,220.84,4.52809213]
[1758578818154,7.57578777,220.91,220.84,5.22809213]
[1758578818771,7.57578777,220.91,220.84,4.52809213]
[1758578818978,7.57578777,220.91,220.85,5.2278571]
[1758578819277,7.57578777,220.91,220.86,0.7]
[1758578819771,7.57578777,220.91,220.87,0.7]
[1758578820558,7.57578777,220.91,220.88,0.7]
[1758578821384,7.57578777,220.91,220.87,0.7]
[1758578824074,4.52673034,220.91,220.87,0.7]
[1758578824278,7.57578777,220.91,220.87,0.7]
[1758578825105,42.59578777,220.91,220.85,4.5278571]
[1758578825293,39.54673034,220.91,220.88,0.7]
[1758578825466,39.54673034,220.91,220.85,4.5278571]
[1758578825775,39.54673034,220.91,220.86,0.7]
[1758578825961,4.5269602,220.9,220.86,0.7]
[1758578826367,4.5269602,220.9,220.85,4.5278571]
[1758578826587,35.02,220.91,220.86,0.7]
[1758578826790,35.02,220.91,220.87,0.7]
[1758578827096,35.02,220.91,220.88,0.7]
[1758578827383,35.02,220.91,220.85,4.5278571]
[1758578827587,35.02,220.91,220.86,0.7]
[1758578827884,26.0,220.93,220.87,0.7]
[1758578828272,26.0,220.93,220.87,14.30760211]
[1758578828479,26.0,220.93,220.88,0.7]
[1758578828876,4.52566217,220.97,220.88,0.7]
[1758578829074,38.06814239,220.96,220.88,0.7]
[1758578829271,3.04814239,220.95,220.89,13.60636778]
[1758578829581,3.04814239,220.95,220.9,0.7]
[1758578830897,3.04814239,220.95,220.9,5.22674681]
[1758578831196,26.0,220.95,220.91,0.7]
[1758578831408,26.0,220.95,220.92,0.7]
[1758578831818,4.525302,220.98,220.92,0.7]
[1758578832186,7.57309904,220.98,220.92,0.7]
[1758578833120,7.57309904,220.98,220.92,5.22646618]
[1758578833418,3.04779704,220.98,220.93,0.7]
[1758578833602,4.52443525,221.03,220.94,13.59559401]
[1758578833800,3.04687687,221.02,220.95,0.7]
[1758578834000,3.04687687,221.01,220.95,0.7]
[1758578834304,3.04687687,221.02,220.96,13.59559401]
[1758578834511,38.04687687,221.05,220.97,0.7]
[1758578834692,3.04687687,221.04,220.97,4.51261549]
[1758578834890,3.04687687,221.03,220.98,0.7]
[1758578835092,35.0,221.05,220.99,4.52509163]
[1758578835093,3.04687687,221.02,220.99,4.52509163]
[1758578835397,3.04687687,221.04,221.0,0.7]
[1758578835597,3.04687687,221.04,221.01,0.7]
[1758578836017,3.04687687,221.04,220.98,4.5252964]
[1758578836213,3.04687687,221.04,221.02,0.7]
[1758578836527,0.1,221.08,221.03,0.72]
[1758578836727,4.62325928,221.08,221.0,0.72]
[1758578836906,5.45993134,221.07,220.98,0.72]
[1758578837113,3.04338758,221.06,220.99,0.72]
[1758578837427,3.04338758,221.06,220.99,14.31559401]
[1758578837723,3.04338758,221.06,221.0,0.72]
[1758578838397,4.52382609,221.06,221.0,0.72]
[1758578840022,15.83297292,221.06,220.98,0.72]
[1758578840320,3.04338758,221.05,220.98,0.72]
[1758578840818,3.04338758,221.05,220.97,13.59559401]
[1758578841037,3.04338758,221.05,220.97,14.31559401]
[1758578841336,3.04338758,221.05,220.98,0.72]
[1758578841513,4.52406804,221.04,220.98,0.72]
[1758578842201,7.56745562,221.04,220.98,0.72]
[1758578846419,9.98399938,221.04,220.98,0.72]
[1758578846629,44.98399938,221.04,220.98,0.72]
[1758578846822,41.9406118,221.04,220.98,0.72]
[1758578847222,53.2507819,221.04,220.96,13.60143268]
[1758578847421,2.41654376,221.01,220.93,4.52621882]
[1758578847732,2.41654376,221.01,220.93,14.29328292]
[1758578847933,2.41654376,221.01,220.94,0.69]
[1758578848810,2.41654376,220.98,220.91,0.69]
[1758578849014,2.41654376,220.98,220.9,13.60513367]
[1758578849218,4.52550119,220.97,220.91,0.69]
[1758578851227,15.83925418,220.97,220.89,0.69]
[1758578851430,2.41654376,220.95,220.89,0.69]
[1758578852520,6.94262493,220.95,220.89,0.69]
[1758578853549,2.41654376,220.92,220.86,0.69]
[1758578853846,37.41654376,220.92,220.84,27.61683619]
[1758578854057,37.41654376,220.92,220.84,14.00923407]
[1758578854626,4.52673034,220.91,220.84,14.00923407]
[1758578857358,4.52673034,220.91,220.85,0.69]
[1758578858452,4.52673034,220.91,220.84,13.31923407]
[1758578858756,4.52673034,220.91,220.83,0.69]
[1758578858757,1.54764462,220.9,220.83,0.69]
[1758578859056,1.54764462,220.87,220.8,0.69]
[1758578859739,1.54764462,220.84,220.8,13.47680542]
[1758578859943,1.54764462,220.84,220.78,0.89]
[1758578860335,6.07596497,220.84,220.79,0.69]
[1758578860741,6.07596497,220.84,220.8,0.69]
[1758578861253,6.07596497,220.84,220.78,18.42772549]
[1758578861424,1.54764462,220.84,220.81,0.69]
[1758578861743,26.0,220.85,220.82,0.69]
[1758578862455,30.52796669,220.85,220.8,0.69]
[1758578865629,1.54764462,220.83,220.78,13.898331]
[1758578866138,1.54764462,220.83,220.78,0.2]
[1758578866339,1.54764462,220.8,220.78,0.2]
[1758578866649,4.52919063,220.79,220.78,0.2]
[1758578868536,4.5289759,220.81,220.78,0.2]
[1758578868753,26.0,220.79,220.78,0.2]
[1758578870060,32.07683525,220.79,220.78,0.2]
[1758578873943,26.0,220.79,220.78,0.89]
[1758578874148,134.2,220.82,220.78,0.89]
[1758578874349,26.0,220.8,220.79,0.69]
[1758578874564,26.0,220.8,220.78,0.2]
[1758578874870,134.2,220.82,220.78,0.2]
[1758578875042,134.2,220.82,220.79,0.69]
[1758578875241,134.2,220.82,220.8,0.69]
[1758578875444,138.72860729,220.82,220.8,0.69]
[1758578875649,138.72860729,220.82,220.78,0.89]
[1758578875866,138.72860729,220.82,220.79,0.69]
[1758578876564,134.2,220.82,220.79,0.69]
[1758578876765,134.2,220.82,220.8,0.69]
[1758578878351,134.2,220.82,220.78,0.2]
[1758578878552,134.2,220.82,220.79,0.72]
[1758578878973,134.2,220.82,220.8,0.72]
[1758578879169,134.2,220.82,220.81,0.72]
[1758578879473,134.2,220.82,220.79,0.72]
[1758578879767,134.2,220.82,220.8,0.72]
[1758578879970,26.0,220.85,220.8,0.72]
[1758578880159,61.0,220.85,220.8,0.72]
[1758578881445,65.22926055,220.85,220.8,0.72]
[1758578881648,65.22926055,220.85,220.81,0.72]
[1758578882070,65.22926055,220.85,220.82,0.72]
[1758578883276,60.70128289,220.85,220.82,0.72]
[1758578883484,60.70128289,220.85,220.83,0.72]
[1758578883775,65.22935598,220.85,220.81,0.72]
[1758578883949,65.22935598,220.85,220.82,0.72]
[1758578884277,65.22935598,220.85,220.8,0.72]
[1758578884779,65.22935598,220.85,220.78,4.72933554]
[1758578884960,65.22935598,220.85,220.81,0.72]
[1758578885174,65.22935598,220.85,220.82,0.72]
[1758578886666,65.22935598,220.85,220.8,0.72]
[1758578886867,65.22935598,220.85,220.81,0.72]
[1758578887266,65.22935598,220.85,220.78,4.72933554]
[1758578887573,65.22935598,220.85,220.82,0.72]
[1758578887774,76.54925636,220.85,220.78,0.2]
[1758578889178,1.54764462,220.83,220.78,0.2]
[1758578889383,169.2,220.82,220.78,0.2]
[1758578889556,26.0,220.79,220.78,0.2]
[1758578889757,61.0,220.79,220.78,0.2]
[1758578890967,65.52919063,220.79,220.78,0.2]
[1758578892064,61.0,220.79,220.78,0.2]
[1758578892380,64.03866093,220.79,220.78,0.2]
[1758578892586,68.56785156,220.79,220.78,0.2]
[1758578892883,3.03866093,220.79,220.78,0.92]
[1758578893186,35.0,220.82,220.78,0.92]
[1758578893360,39.52875744,220.82,220.78,0.92]
[1758578893684,27.54764462,220.79,220.78,0.2]
[1758578893861,64.03960452,220.79,220.78,0.2]
[1758578894057,62.54764462,220.79,220.78,0.2]
[1758578894461,65.58768664,220.79,220.78,0.2]
[1758578895062,70.11687727,220.79,220.78,0.2]
[1758578897884,68.56923265,220.79,220.78,0.2]
[1758578902380,82.16482666,220.79,220.78,1e-08]
[1758578902894,83.98098594,220.79,220.78,1e-08]
[1758578903394,83.98098594,220.79,220.77,1e-08]
[1758578903602,21.1650318,220.78,220.77,1e-08]
[1758578903896,7.56943779,220.78,220.77,1e-08]
[1758578904202,39.52939577,220.78,220.77,1e-08]
[1758578904377,42.56943779,220.78,220.77,1e-08]
[1758578908593,68.56943779,220.78,220.77,1e-08]
[1758578909188,33.56943779,220.78,220.77,0.68000001]
[1758578909391,68.56943779,220.78,220.77,1e-08]
[1758578911699,68.56943779,220.78,220.77,0.68000001]
[1758578912209,68.56943779,220.78,220.77,1e-08]
[1758578913699,33.56943779,220.78,220.77,1e-08]
[1758578913898,68.57446388,220.78,220.77,1e-08]
[1758578914685,68.57446388,220.78,220.77,0.68000001]
[1758578914904,68.57446388,220.78,220.77,1e-08]
[1758578920112,42.57446388,220.78,220.77,1e-08]
[1758578920324,57.71770251,220.78,220.77,1e-08]
[1758578920804,58.59161841,220.78,220.77,1e-08]
[1758578922099,42.57446388,220.78,220.77,1e-08]
[1758578923096,42.57446388,220.78,220.77,0.68000001]
[1758578923402,42.57446388,220.78,220.77,1e-08]
[1758578933796,42.57446388,220.78,220.77,0.68000001]
[1758578935325,42.57446388,220.78,220.77,1e-08]
[1758578936619,7.57446388,220.78,220.71,0.2]
[1758578936805,202.05721206,220.77,220.71,0.2]
[1758578937004,3.04506811,220.76,220.71,0.2]
[1758578937204,38.04506811,220.75,220.72,0.68]
[1758578937520,3.04506811,220.74,220.72,0.68]
[1758578937707,38.04506811,220.73,220.72,0.68]
[1758578939642,3.04506811,220.73,220.72,0.68]
[1758578939932,38.04506811,220.73,220.72,0.68]
[1758578942933,3.04506811,220.73,220.72,0.68]
[1758578943229,42.57548989,220.73,220.72,0.68]
[1758578943442,7.57548989,220.73,220.72,0.68]
[1758578943607,42.57548989,220.73,220.72,0.68]
[1758578945068,38.04506811,220.73,220.72,0.68]
[1758578946243,3.04506811,220.73,220.72,0.68]
[1758578946450,2.32506811,220.73,220.72,5.21062703]
[1758578946625,134.2,220.77,220.72,5.21062703]
[1758578946821,35.0,220.78,220.73,0.72]
[1758578947723,6.23370447,220.83,220.73,0.72]
[1758578947946,26.0,220.8,220.73,0.72]
[1758578948253,35.0,220.79,220.74,4.53021654]
[1758578948545,35.0,220.79,220.75,0.72]
[1758578948746,26.0,220.8,220.75,0.72]
[1758578948933,61.0,220.8,220.75,0.72]
[1758578949738,4.5285332,220.83,220.75,5.24989307]
[1758578949939,35.0,220.82,220.76,0.72]
[1758578951454,39.52863686,220.82,220.76,5.24976993]
[1758578951674,39.52863686,220.82,220.77,0.72]
[1758578952619,35.0,220.82,220.77,0.72]
[1758578952833,39.52861369,220.82,220.77,0.72]
[1758578953955,4.52799524,220.85,220.77,5.24952131]